bitfinex-derivatives/quotes_ETHF0:USTF0_20250923
["timestamp","ask_amount","ask_price","bid_price","bid_amount"]
[1758655998088,0.759,4167.9,4167.8,0.59608]
[1758655998591,0.9821,4167.9,4167.8,0.59608]
[1758655999596,0.5567,4167.9,4167.8,0.64748]
[1758655999896,0.3127,4167.9,4167.8,0.64748]
[1758656000097,0.515,4167.9,4167.8,0.59608]
[1758656000298,0.7381,4167.9,4167.8,0.43168]
[1758656002895,0.7381,4167.9,4167.8,0.59608]
[1758656004102,0.9821,4167.9,4167.8,0.59608]
[1758656004302,0.9821,4167.9,4167.8,0.43168]
[1758656005192,0.9821,4167.9,4167.8,0.51568]
[1758656005393,0.9821,4167.9,4167.8,0.59968]
[1758656007602,0.7381,4167.9,4167.8,0.59968]
[1758656007790,3.3323,4168.5,4168.1,1.07912]
[1758656007996,3.7541,4168.5,4168.4,1.19192]
[1758656008195,0.3438,4168.5,4168.4,0.86022]
[1758656008403,0.6658,4168.6,4168.5,0.86021]
[1758656009307,3.3324,4169.0,4168.9,0.64657]
[1758656009308,3.7542,4169.0,4168.9,0.64657]
[1758656009608,4.50405415,4169.0,4168.9,1.19187]
[1758656009905,4.316,4169.0,4168.9,0.86017]
[1758656010107,4.316,4169.0,4168.9,0.64657]
[1758656010303,4.74756,4169.0,4168.9,0.43157]
[1758656010500,4.42976,4169.0,4168.9,0.43157]
[1758656011106,6.62947166,4169.0,4168.9,0.43157]
[1758656011399,0.43159,4168.7,4168.5,0.4316]
[1758656011609,0.9836,4168.6,4168.5,0.4316]
[1758656011805,1.4152,4168.6,4168.5,0.4316]
[1758656012206,0.9836,4168.6,4168.5,0.4316]
[1758656012407,0.7396,4168.4,4168.3,0.43163]
[1758656013106,1.17122,4168.4,4168.3,0.43163]
[1758656013298,0.7396,4168.4,4168.3,0.43163]
[1758656013500,1.17122,4168.4,4168.3,0.43163]
[1758656014500,1.17122,4168.4,4167.6,4.28706]
[1758656014706,0.7396,4167.7,4167.6,0.4317]
[1758656014910,1.41529,4167.7,4167.5,0.43171]
[1758656015215,1.41529,4167.7,4167.1,3.63955]
[1758656015216,0.7396,4167.2,4167.1,3.63955]
[1758656015406,0.7396,4167.2,4167.1,3.85455]
[1758656016406,0.7396,4167.2,4167.1,3.63955]
[1758656017005,0.7396,4167.2,4167.1,3.85455]
[1758656017901,0.7396,4167.2,4166.9,0.43176]
[1758656018108,0.5545,4167.0,4166.9,0.43176]
[1758656018412,0.8723,4167.0,4166.9,0.43176]
[1758656018710,1.30406,4167.0,4166.9,0.43176]
[1758656019106,0.7396,4166.8,4166.7,0.43179]
[1758656019416,0.9836,4166.8,4166.7,0.43179]
[1758656020407,0.3178,4166.8,4166.7,1.19209]
[1758656020713,0.7811,4166.8,4166.7,1.19209]
[1758656020911,0.9836,4166.8,4166.7,1.19209]
[1758656021219,0.9836,4166.8,4166.7,0.86039]
[1758656021905,0.9836,4166.8,4166.7,1.19209]
[1758656022708,0.4218,4167.3,4167.2,0.64534]
[1758656022906,3.2078,4167.4,4167.3,1.19203]
[1758656022907,3.6711,4167.4,4167.3,1.19203]
[1758656023107,3.9889,4167.4,4167.3,1.19203]
[1758656023408,4.1914,4167.4,4167.3,1.19203]
[1758656023814,4.1914,4167.4,4167.3,0.86033]
[1758656025722,3.7696,4167.4,4167.3,1.19203]
[1758656026223,0.5545,4168.0,4167.9,0.64666]
[1758656026411,0.5545,4168.5,4168.2,0.43162]
[1758656026610,0.6658,4168.2,4168.1,0.215]
[1758656026809,0.9836,4168.2,4168.1,0.215]
[1758656027009,0.9836,4168.2,4168.1,0.4286]
[1758656027917,0.9836,4168.2,4168.1,0.86024]
[1758656033420,0.9836,4168.2,4168.1,0.43164]
[1758656034021,0.9836,4168.2,4168.1,0.64204]
[1758656034721,0.7379,4167.8,4167.7,0.2104]
[1758656035223,0.7379,4167.8,4167.7,0.64209]
[1758656035922,0.9819,4167.8,4167.7,0.64209]
[1758656036524,0.9819,4167.8,4167.7,0.43169]
[1758656038425,0.9819,4167.8,4167.7,1.18169]
[1758656038722,0.5609,4167.8,4167.7,1.18169]
[1758656038923,0.7675,4167.8,4167.7,1.18169]
[1758656039629,0.9819,4167.8,4167.7,0.86479]
[1758656039814,0.7379,4167.8,4167.7,0.86479]
[1758656040013,0.7827,4168.5,4168.4,0.64202]
[1758656040213,0.8706,4168.5,4168.4,1.18162]
[1758656040525,1.1146,4168.5,4168.4,0.86472]
[1758656040816,0.43162,4168.4,4167.9,1.07918]
[1758656041017,0.6501,4168.0,4167.9,1.18167]
[1758656041418,0.3169,4168.0,4167.9,1.18167]
[1758656041626,1.1146,4168.5,4168.4,0.64202]
[1758656042015,0.43163,4168.4,4168.1,0.3169]
[1758656042222,1.16953,4168.4,4168.3,0.43163]
[1758656043119,0.7379,4168.4,4167.8,1.3961]
[1758656043320,0.3169,4167.8,4167.5,3.5247]
[1758656043521,0.7379,4167.8,4167.7,0.64209]
[1758656043826,0.9819,4167.8,4167.7,0.64209]
[1758656044523,0.9819,4167.8,4167.7,0.86479]
[1758656044824,0.9819,4167.8,4167.7,1.18169]
[1758656045731,0.3169,4168.0,4167.7,0.4331]
[1758656045927,0.8706,4168.5,4168.4,0.86472]
[1758656046118,2.05160329,4168.5,4168.4,0.86472]
[1758656046719,1.37599329,4168.5,4168.4,1.18162]
[1758656046924,1.1146,4168.5,4168.4,1.18162]
[1758656047224,1.54621,4168.5,4168.4,0.86472]
[1758656047421,1.1146,4168.5,4168.4,0.86472]
[1758656048218,1.54621,4168.5,4168.4,0.43162]
[1758656049320,2.05130355,4168.5,4168.4,0.43162]
[1758656050022,0.421,4167.9,4167.8,0.64208]
[1758656050327,0.7379,4167.9,4167.8,0.64208]
[1758656051125,0.7379,4167.9,4167.8,0.43168]
[1758656052329,0.5235,4167.9,4167.8,1.18338]
[1758656052526,0.7675,4167.9,4167.8,1.18338]
[1758656053026,0.9792,4167.9,4167.8,1.18338]
[1758656053218,0.9792,4167.9,4167.8,0.85018]
[1758656055229,0.3157,4167.7,4167.6,0.4317]
[1758656055430,0.7321,4167.7,4167.6,0.4317]
[1758656055636,0.7321,4167.7,4167.6,0.6551]
[1758656055925,0.7321,4167.7,4167.5,3.63951]
[1758656055926,1.1638,4167.6,4167.5,3.63951]
[1758656056129,0.43172,4167.5,4167.4,0.43172]
[1758656056328,1.16383,4167.3,4167.2,0.43174]
[1758656056630,1.16383,4167.3,4166.9,3.2078]
[1758656056631,1.29356,4167.0,4166.9,3.2078]
[1758656056830,2.04369825,4167.0,4166.9,3.2078]
[1758656057219,0.43179,4166.8,4166.6,0.4318]
[1758656057422,1.16389,4166.7,4166.6,0.4318]
[1758656057626,0.7321,4166.4,4166.3,3.4312]
[1758656058031,0.7321,4166.4,4166.3,3.86304]
[1758656058232,0.7321,4166.4,4166.3,4.07114]
[1758656060334,0.7321,4166.4,4166.3,4.40434]
[1758656060532,1.16393,4166.4,4166.3,3.9725]
[1758656060832,1.16393,4166.4,4166.3,3.2078]
[1758656061224,1.16393,4166.4,4166.3,3.4312]
[1758656061431,1.16393,4166.4,4166.3,3.86304]
[1758656062126,0.7321,4166.4,4166.3,4.40434]
[1758656062825,0.7321,4166.4,4166.3,4.07114]
[1758656063130,1.16393,4166.4,4166.3,3.6393]
[1758656063329,1.16393,4166.4,4166.3,0.4315]
[1758656064024,0.1297,4166.5,4166.0,0.43186]
[1758656064341,0.1297,4166.5,4165.9,0.2031]
[1758656064342,0.8662,4166.0,4165.9,0.2031]
[1758656064832,1.29807,4166.0,4165.9,0.4254]
[1758656065029,0.8662,4166.0,4165.6,0.3256]
[1758656065328,0.8662,4166.0,4163.9,10.80212]
[1758656065329,0.43195,4165.2,4165.0,0.3256]
[1758656065534,0.7347,4165.1,4165.0,0.43197]
[1758656065831,0.7347,4165.1,4164.9,0.2031]
[1758656065832,0.8662,4165.0,4164.9,0.2031]
[1758656066331,0.8662,4165.0,4164.9,0.4254]
[1758656066632,0.8662,4165.0,4164.9,0.751]
[1758656067228,0.8662,4165.0,4164.9,0.4254]
[1758656071736,0.8662,4165.0,4164.9,0.85738]
[1758656073334,0.8662,4165.0,4164.9,0.43198]
[1758656073737,0.8662,4165.0,4164.4,0.43203]
[1758656073738,0.8662,4164.5,4164.4,0.43203]
[1758656073929,1.1102,4164.5,4164.4,0.43203]
[1758656074132,0.7347,4164.3,4164.2,0.43205]
[1758656074331,0.7347,4164.2,4164.1,0.43206]
[1758656074543,0.9787,4164.2,4164.1,0.43206]
[1758656076642,0.9787,4164.2,4164.1,0.85746]
[1758656077745,0.9787,4164.2,4164.1,0.63516]
[1758656078537,0.9787,4164.2,4164.1,0.85746]
[1758656079445,0.7347,4164.2,4164.1,1.18306]
[1758656079644,0.35,4164.5,4164.4,0.85743]
[1758656079848,0.7976,4164.5,4164.4,1.18303]
[1758656080143,1.1102,4164.5,4164.4,0.85743]
[1758656081447,1.1102,4164.5,4163.9,1.18308]
[1758656081448,0.5311,4164.0,4163.9,1.18308]
[1758656081642,0.7751,4164.0,4163.9,1.18308]
[1758656082238,4.074,4164.5,4164.4,0.85743]
[1758656082440,4.318,4164.5,4164.4,1.18303]
[1758656082641,4.074,4164.5,4164.4,1.18303]
[1758656082841,4.1144,4164.5,4164.4,1.18303]
[1758656083752,1.1102,4164.5,4164.4,1.18303]
[1758656084347,1.1102,4164.5,4164.4,0.85743]
[1758656085046,3.3393,4165.0,4164.4,1.18303]
[1758656085354,3.7614,4165.0,4164.9,0.85738]
[1758656085552,4.0054,4165.0,4164.9,0.85738]
[1758656085754,4.318,4165.0,4164.9,0.85738]
[1758656086640,0.8662,4165.0,4164.9,0.85738]
[1758656086847,1.1102,4165.0,4164.9,1.18298]
[1758656087157,1.1102,4165.0,4164.9,0.85738]
[1758656088053,1.89111196,4165.2,4164.9,1.18298]
[1758656088240,1.89111196,4165.2,4164.8,3.2078]
[1758656088241,1.89111196,4165.2,4165.1,1.18296]
[1758656088445,2.44771196,4165.2,4165.1,1.18296]
[1758656088846,0.5566,4165.2,4165.1,1.18296]
[1758656089048,0.9787,4165.2,4165.1,1.18296]
[1758656091243,0.7751,4165.2,4165.1,1.18296]
[1758656091951,0.9787,4165.2,4165.1,0.43196]
[1758656092356,0.9787,4165.2,4165.1,0.63506]
[1758656092857,0.9787,4165.2,4165.1,0.85736]
[1758656094155,0.9787,4165.2,4165.1,0.63506]
[1758656096552,0.9787,4165.2,4165.1,1.16576]
[1758656097655,0.9787,4165.2,4165.1,0.83756]
[1758656099754,0.9787,4165.2,4165.1,1.16576]
[1758656099955,0.7751,4165.2,4165.1,1.16576]
[1758656100553,0.744,4165.2,4165.1,0.83756]
[1758656100954,0.988,4165.2,4165.1,0.83756]
[1758656101354,0.988,4165.2,4165.1,0.43196]
[1758656102559,0.744,4165.2,4165.1,0.64046]
[1758656103368,0.988,4165.2,4165.1,0.64046]
[1758656103866,0.744,4165.2,4165.1,0.64046]
[1758656104059,0.988,4165.2,4165.1,0.64046]
[1758656104362,0.988,4165.2,4165.1,0.43196]
[1758656104564,0.988,4165.2,4165.1,0.64046]
[1758656106362,0.7637,4165.2,4165.1,1.17116]
[1758656107166,0.9766,4165.2,4165.1,0.84296]
[1758656107374,0.9766,4165.2,4165.1,0.43196]
[1758656108465,0.1246,4165.0,4164.8,3.2078]
[1758656108669,0.8781,4165.0,4164.9,0.43198]
[1758656109366,0.8781,4165.0,4164.9,0.64048]
[1758656110868,0.97657,4165.0,4164.8,3.2078]
[1758656111066,1.18548,4164.9,4164.8,3.2078]
[1758656111369,0.1221,4164.0,4163.6,3.2078]
[1758656111570,0.7608,4163.7,4163.6,3.85522]
[1758656114074,0.7608,4163.7,4163.6,4.06042]
[1758656115271,0.7608,4163.7,4163.6,3.85522]
[1758656116475,0.7608,4163.7,4163.6,3.63992]
[1758656118478,0.7608,4163.7,4163.1,3.21870804]
[1758656118769,0.7608,4163.2,4163.1,3.43400804]
[1758656118963,1.0048,4163.2,4163.1,4.37457804]
[1758656119879,1.0048,4163.2,4163.1,4.07137804]
[1758656120778,1.0048,4163.2,4163.1,4.37457804]
[1758656122162,1.43696,4163.2,4163.1,4.07137804]
[1758656123366,4.64476,4163.2,4163.1,0.43140804]
[1758656123573,1.28998,4163.0,4162.9,0.024022]
[1758656124071,42.08998,4163.0,4162.9,0.024022]
[1758656124276,47.08998,4163.0,4162.9,0.024022]
[1758656125272,47.33398,4163.0,4162.9,0.024022]
[1758656126880,0.7314,4162.2,4162.1,0.2102]
[1758656127171,0.7314,4161.9,4161.8,0.8579]
[1758656127677,0.9754,4161.9,4161.8,1.1614]
[1758656129665,0.5294,4161.9,4161.8,1.1614]
[1758656129869,0.5662,4161.9,4161.8,1.1614]
[1758656130372,0.7734,4161.9,4161.8,1.1614]
[1758656131178,0.9754,4161.9,4161.8,0.6425]
[1758656131374,0.9754,4161.9,4161.8,0.4323]
[1758656131583,0.9754,4161.9,4161.8,0.8579]
[1758656132274,0.9754,4161.9,4161.8,0.6425]
[1758656132474,0.9754,4161.9,4161.8,0.4323]
[1758656133679,0.9754,4161.9,4161.8,0.8579]
[1758656133876,0.4092,4162.4,4162.3,0.64245]
[1758656134069,0.4512,4162.4,4162.3,1.16135]
[1758656134276,0.4512,4162.4,4162.3,1.16055]
[1758656134482,0.7734,4162.4,4162.3,1.16055]
[1758656134777,0.9754,4162.4,4162.3,0.7283]
[1758656134977,1.40764,4162.4,4162.3,0.4248]
[1758656135177,0.8578,4162.0,4161.9,0.85789]
[1758656135372,1.1018,4162.0,4161.9,0.85789]
[1758656136375,0.7734,4162.0,4161.9,1.16139]
[1758656136582,0.6558,4162.5,4162.4,1.16134]
[1758656136872,1.1018,4162.5,4162.4,0.85784]
[1758656137385,1.53403,4162.5,4162.4,0.85784]
[1758656137780,1.53403,4162.5,4162.4,0.64244]
[1758656138285,0.7314,4162.2,4162.1,0.85787]
[1758656138481,0.9754,4162.2,4162.1,0.85787]
[1758656138783,0.3336,4162.5,4162.4,0.43224]
[1758656138989,0.5776,4162.5,4162.4,1.16134]
[1758656139285,0.8998,4162.5,4162.4,1.16134]
[1758656139684,2.5498675,4162.5,4162.4,1.16134]
[1758656139888,3.2078,4162.6,4162.5,1.21273]
[1758656140184,3.9812,4162.6,4162.5,1.16133]
[1758656140483,4.1832,4162.6,4162.5,0.85783]
[1758656141090,0.9754,4162.6,4162.5,1.16133]
[1758656142196,0.7314,4162.6,4162.5,1.16133]
[1758656142387,0.9754,4162.6,4162.5,1.16133]
[1758656142887,0.3222,4162.6,4162.5,1.16133]
[1758656143193,3.2078,4163.1,4162.5,1.16133]
[1758656143194,0.7314,4163.4,4163.3,0.85775]
[1758656143392,0.7314,4163.4,4163.3,1.16125]
[1758656143393,0.5294,4163.4,4163.3,1.16125]
[1758656143691,3.2078,4163.7,4163.6,0.4256]
[1758656143692,3.53,4163.7,4163.6,0.4256]
[1758656143889,3.774,4163.7,4163.6,0.4256]
[1758656144088,3.9812,4163.7,4163.6,1.16122]
[1758656144286,4.1832,4163.7,4163.6,1.16122]
[1758656144792,4.1832,4163.7,4163.6,0.85772]
[1758656144989,4.1832,4163.7,4163.6,0.64232]
[1758656146892,4.1832,4163.7,4163.6,0.43212]
[1758656147594,6.07134448,4163.7,4163.6,0.43212]
[1758656148188,6.07134448,4163.7,4163.6,0.85772]
[1758656149990,3.2078,4163.7,4163.6,1.16122]
[1758656150191,3.4518,4163.7,4163.6,1.16122]
[1758656150394,0.7734,4163.7,4163.6,1.16122]
[1758656150691,0.9754,4163.7,4163.6,1.16122]
[1758656151080,0.9754,4163.7,4163.6,0.85772]
[1758656153189,0.9754,4163.7,4163.6,1.16122]
[1758656154099,0.9754,4163.7,4163.6,0.85772]
[1758656158197,1.87384345,4163.9,4163.8,0.43209]
[1758656158413,0.5603,4163.9,4163.8,1.14949]
[1758656158614,2.43530007,4163.9,4163.8,1.14949]
[1758656158816,0.7634,4163.9,4163.8,1.14949]
[1758656159608,3.2078,4164.2,4164.1,0.43206]
[1758656159816,3.6549,4164.2,4164.1,0.84536]
[1758656160009,3.6549,4164.2,4164.1,1.14946]
[1758656160317,4.62275,4164.2,4164.1,0.84536]
[1758656160613,4.62275,4164.2,4164.1,0.43206]
[1758656161014,6.12412595,4164.2,4164.1,0.63716]
[1758656161802,6.55617595,4164.2,4164.1,0.2051]
[1758656162002,0.2031,4163.6,4163.5,0.63723]
[1758656162208,0.4226,4163.6,4163.5,0.63723]
[1758656162510,0.4226,4163.3,4163.2,3.2078]
[1758656162711,0.9829,4163.3,4163.2,3.2078]
[1758656162912,0.9829,4163.3,4163.2,3.84506]
[1758656163218,0.9829,4163.3,4163.2,3.4129]
[1758656163609,0.9829,4163.3,4163.2,3.84506]
[1758656164608,1.41505,4163.3,4163.2,3.4129]
[1758656164813,1.41505,4163.3,4162.8,0.3041]
[1758656165010,1.41505,4163.3,4163.2,0.43216]
[1758656165617,0.9829,4163.3,4163.2,0.43216]
[1758656166115,1.41505,4163.3,4163.2,0.43216]
[1758656169814,1.41505,4163.3,4163.0,0.43217]
[1758656170014,0.3163,4163.2,4163.0,0.43217]
[1758656170318,0.3163,4163.1,4163.0,1.14957]
[1758656170621,0.5194,4163.1,4163.0,1.14957]
[1758656172214,0.5368,4163.5,4163.4,0.7376]
[1758656172521,1.2881245,4163.5,4163.4,0.7376]
[1758656172724,1.6010245,4163.5,4163.4,0.7376]
[1758656172925,1.6010245,4163.5,4163.4,0.86004]
[1758656173222,1.3570245,4163.5,4163.4,1.16974]
[1758656173421,0.3129,4163.7,4163.6,1.16972]
[1758656173611,1.93342595,4164.2,4164.1,1.16966]
[1758656173612,2.13612595,4164.2,4164.1,1.16966]
[1758656173814,1.59809696,4164.2,4164.1,0.85996]
[1758656174014,0.92204696,4164.2,4164.1,0.85996]
[1758656174219,1.45644261,4164.2,4164.1,1.16966]
[1758656174422,1.88849261,4164.2,4164.1,1.16966]
[1758656174825,1.45644261,4164.2,4164.1,0.208]
[1758656175516,1.88849261,4164.2,4164.1,0.208]
[1758656176125,0.56018,4164.0,4163.5,0.3097]
[1758656176323,0.1281,4163.5,4163.4,3.2078]
[1758656176618,0.43214,4163.4,4163.2,0.43215]
[1758656176821,1.23490765,4163.3,4163.2,0.43215]
[1758656177027,1.66705765,4163.3,4163.2,0.43215]
[1758656177222,0.244,4163.5,4163.2,0.7376]
[1758656177523,0.9716,4163.5,4163.4,1.16974]
[1758656177712,1.2349018,4163.5,4163.4,1.16974]
[1758656177920,0.5156,4163.8,4163.7,0.4321]
[1758656178119,1.02286488,4163.8,4163.7,1.1697]
[1758656178322,0.7596,4163.8,4163.7,1.1697]
[1758656178518,0.4467,4163.8,4163.7,1.1697]
[1758656178927,0.7596,4163.8,4163.7,1.1697]
[1758656179625,0.5156,4163.8,4163.7,1.1697]
[1758656179821,2.36547595,4164.2,4163.7,1.1697]
[1758656179822,1.93342595,4164.2,4164.1,0.43206]
[1758656180026,1.47878754,4164.2,4164.1,1.16966]
[1758656180418,1.91083754,4164.2,4164.1,1.16966]
[1758656180626,1.91083754,4164.2,4164.1,0.85996]
[1758656180929,1.91083754,4164.2,4164.1,0.64006]
[1758656182225,1.47878754,4164.2,4163.8,0.3097]
[1758656182530,1.28777,4164.0,4163.9,0.43207]
[1758656182828,1.36288754,4164.0,4163.9,0.43207]
[1758656183029,1.36288754,4164.0,4163.9,0.64007]
[1758656183824,1.79495754,4164.0,4163.9,0.64007]
[1758656184231,1.36288754,4164.0,4163.9,0.64007]
[1758656185234,1.04998754,4164.0,4163.4,3.5431]
[1758656185420,1.29303,4163.5,4163.4,0.43214]
[1758656185623,1.61206309,4163.5,4163.4,0.43214]
[1758656186122,2.04419309,4163.5,4163.4,0.43214]
[1758656186323,2.04419309,4163.5,4163.3,0.43215]
[1758656186526,1.24436309,4163.4,4163.0,0.3353]
[1758656186723,0.7372,4163.3,4163.2,0.43215]
[1758656188031,0.7372,4163.3,4163.2,0.65125]
[1758656188336,0.7372,4163.3,4163.2,0.43215]
[1758656190018,0.74686,4163.2,4162.9,3.2078]
[1758656190326,0.8609,4163.0,4162.9,3.85909]
[1758656190528,0.8609,4163.0,4162.9,3.4269]
[1758656190725,0.8609,4163.0,4162.9,3.85909]
[1758656191334,0.8609,4163.0,4162.9,4.19439]
[1758656192035,0.8609,4163.0,4162.9,3.85909]
[1758656192229,0.8609,4163.0,4162.9,4.19439]
[1758656192638,0.8609,4163.0,4162.9,3.85909]
[1758656193321,0.8609,4163.0,4162.9,4.19439]
[1758656193734,0.8609,4163.0,4162.5,0.3353]
[1758656193926,1.1694,4162.8,4162.7,0.4322]
[1758656194132,0.7372,4162.6,4162.5,0.43222]
[1758656194328,1.41342,4162.6,4162.5,0.43222]
[1758656194635,1.92040984,4162.6,4162.5,0.43222]
[1758656194831,0.4384,4162.5,4162.4,3.4269]
[1758656195038,0.8609,4162.5,4162.4,3.4269]
[1758656195234,0.8609,4162.5,4162.4,4.19444]
[1758656195629,0.8609,4162.5,4162.4,4.41554]
[1758656195930,4.50093,4162.5,4162.4,0.2191]
[1758656197532,4.50093,4162.5,4162.4,0.65134]
[1758656198541,4.50093,4162.5,4162.4,0.2191]
[1758656199033,0.43226,4162.2,4161.6,1.0808]
[1758656199238,0.7372,4162.2,4162.1,1.20777]
[1758656199436,0.9812,4162.2,4162.1,1.20777]
[1758656199847,1.41346,4162.2,4162.1,0.7755]
[1758656200136,0.9812,4162.2,4162.1,1.20777]
[1758656202234,0.9812,4162.2,4161.6,0.3353]
[1758656202439,0.5162,4161.7,4161.6,1.20782]
[1758656202836,0.4225,4162.2,4162.1,1.20777]
[1758656203037,0.9812,4162.2,4162.1,1.20777]
[1758656204541,0.8609,4162.0,4161.9,0.98668]
[1758656204841,4.50098,4162.0,4161.9,0.5544]
[1758656205137,4.50098,4162.0,4160.5,0.125]
[1758656205138,0.2015,4161.1,4160.5,0.125]
[1758656205339,0.222,4161.3,4161.2,0.98876]
[1758656205639,0.9592,4161.3,4161.2,0.7755]
[1758656209235,0.244,4161.3,4161.2,0.7747]
[1758656209539,3.2078,4161.8,4161.7,0.3353]
[1758656209734,3.2078,4161.8,4161.7,0.7755]
[1758656209945,0.5162,4161.9,4161.8,1.2078]
[1758656210150,0.7602,4161.9,4161.8,1.2078]
[1758656212946,0.5162,4161.9,4161.8,1.2078]
[1758656213150,0.303,4162.7,4162.2,0.4402]
[1758656213345,3.9331,4162.8,4162.7,1.17161]
[1758656213544,4.1771,4162.8,4162.7,1.17161]
[1758656214950,4.6093,4162.8,4162.7,1.17161]
[1758656215245,4.1771,4162.8,4162.7,1.17161]
[1758656215449,3.9331,4162.8,4162.7,1.17161]
[1758656215751,4.1771,4162.8,4162.7,1.17161]
[1758656217046,3.2078,4162.8,4162.7,1.17161]
[1758656217447,3.4518,4162.8,4162.7,1.17161]
[1758656217855,4.1771,4162.8,4162.7,1.17161]
[1758656219453,4.6093,4162.8,4162.7,1.17161]
[1758656219654,4.1771,4162.8,4162.7,1.17161]
[1758656220446,0.1229,4162.5,4162.4,0.43224]
[1758656220651,0.7253,4162.2,4162.1,3.64007]
[1758656220954,0.9693,4162.2,4162.1,4.37947]
[1758656221148,0.9693,4162.2,4162.1,4.06267]
[1758656221348,0.9693,4162.2,4162.1,4.37947]
[1758656221948,0.4223,4162.1,4162.0,0.43228]
[1758656222156,0.9693,4162.1,4162.0,1.17168]
[1758656222850,0.8482,4162.5,4162.4,1.17164]
[1758656223049,0.7253,4162.5,4162.4,1.17164]
[1758656223251,3.7252,4163.3,4163.2,1.17156]
[1758656223457,0.7614,4163.3,4163.2,1.17156]
[1758656223749,0.5174,4163.3,4163.2,1.17156]
[1758656223952,0.5174,4163.8,4163.7,1.1715]
[1758656224153,0.244,4163.8,4163.7,1.1715]
[1758656224455,0.9693,4163.8,4163.7,1.1715]
[1758656225254,0.9693,4163.8,4163.7,0.8547]
[1758656225857,0.9693,4163.8,4163.7,1.1715]
[1758656226060,0.9693,4163.8,4163.7,0.6509]
[1758656228361,0.9693,4163.8,4163.7,0.9677]
[1758656228560,0.9693,4163.8,4163.7,1.1715]
[1758656228760,0.9693,4163.8,4163.7,0.8547]
[1758656229261,0.9693,4163.8,4163.7,0.6509]
[1758656230350,0.9693,4163.8,4163.7,0.2188]
[1758656230553,0.8482,4163.5,4163.4,0.43214]
[1758656230748,1.0922,4163.5,4163.4,0.43214]
[1758656231256,1.15744,4163.4,4163.3,0.43215]
[1758656231557,1.15747,4163.1,4162.9,0.43219]
[1758656231760,1.1119,4163.0,4162.9,0.65099]
[1758656232760,1.1119,4163.0,4162.8,0.4322]
[1758656233063,0.742,4162.9,4162.8,0.6426]
[1758656233762,1.17419,4162.9,4162.8,0.2104]
[1758656233961,0.742,4162.9,4162.8,0.6426]
[1758656234361,1.17419,4162.9,4162.8,0.4322]
[1758656234659,0.742,4162.9,4162.8,0.4322]
[1758656234862,1.1742,4162.8,4162.7,3.2078]
[1758656235957,1.1742,4162.8,4162.7,3.64001]
[1758656236264,0.742,4162.8,4162.7,3.64001]
[1758656236564,1.1742,4162.8,4162.7,3.64001]
[1758656237566,1.1742,4162.8,4162.7,3.2078]
[1758656239467,0.84713,4162.6,4162.5,0.2104]
[1758656239660,1.41823,4162.6,4162.5,0.5212]
[1758656239863,0.986,4162.6,4162.5,0.95343]
[1758656240263,0.986,4162.6,4162.5,1.16673]
[1758656240962,1.41822,4162.6,4162.5,1.16673]
[1758656241164,1.41822,4162.6,4162.5,0.4237]
[1758656241663,0.4554,4162.6,4162.5,1.16673]
[1758656241862,0.986,4162.6,4162.5,1.16673]
[1758656247878,1.41822,4162.6,4162.5,1.16673]
[1758656248279,0.986,4162.6,4162.5,1.16673]
[1758656248581,1.41822,4162.6,4162.5,1.16673]
[1758656248776,0.986,4162.6,4162.5,1.16673]
[1758656249084,1.41822,4162.6,4162.5,0.64263]
[1758656249378,1.41822,4162.6,4162.5,0.96893]
[1758656250078,0.986,4162.6,4162.5,1.18653]
[1758656250484,1.41822,4162.6,4162.5,1.18653]
[1758656250985,0.986,4162.6,4162.5,1.18653]
[1758656252078,1.41822,4162.6,4162.5,1.18653]
[1758656254884,1.41822,4162.6,4162.5,0.7543]
[1758656255085,1.41822,4162.6,4162.5,1.18653]
[1758656255580,0.986,4162.6,4162.5,1.18653]
[1758656255779,0.244,4162.6,4162.5,1.30893]
[1758656255984,0.7733,4162.6,4162.5,1.30893]
[1758656256186,1.40952,4162.6,4162.5,0.7543]
[1758656256380,0.55544,4162.5,4162.3,0.3263]
[1758656256686,0.7333,4162.4,4162.3,1.19645]
[1758656256886,1.16554,4162.4,4162.3,0.2203]
[1758656257581,0.4093,4162.0,4161.9,0.2203]
[1758656257779,1.1005,4162.0,4161.9,0.7642]
[1758656257975,0.7733,4162.0,4161.9,1.19649]
[1758656259178,3.96404,4162.4,4162.3,0.2203]
[1758656259383,4.48895144,4162.4,4162.3,1.19645]
[1758656260379,5.12519144,4162.4,4162.3,0.7642]
[1758656260581,5.12519144,4162.4,4162.3,1.19645]
[1758656260982,5.12519144,4162.4,4162.3,0.7642]
[1758656261188,5.12519144,4162.4,4162.3,1.19645]
[1758656261789,4.69295144,4162.4,4162.3,1.19645]
[1758656262382,4.44895144,4162.4,4162.3,1.19645]
[1758656262683,3.4518,4162.4,4162.3,1.19645]
[1758656263289,3.96052643,4162.4,4162.3,1.19645]
[1758656264690,5.12606643,4162.4,4162.3,0.7642]
[1758656264882,5.12606643,4162.4,4161.9,0.7642]
[1758656264883,0.7333,4162.0,4161.9,0.7642]
[1758656265789,0.8565,4162.0,4161.9,0.43229]
[1758656265986,0.8565,4162.0,4161.9,1.19649]
[1758656266186,0.7333,4162.0,4161.9,1.19649]
[1758656266698,1.16558,4162.0,4161.9,1.19649]
[1758656266890,0.7333,4162.0,4161.9,1.19649]
[1758656267192,1.79767973,4162.0,4161.9,0.2203]
[1758656267690,0.8416,4161.8,4161.7,0.65261]